{"text_format":"1","workbook":"xlsx","n_sheets":6,"sheets":["Dataset","Left & Mid","VBA","Replace","Combined","Substitute"],"not_rendered":{"charts":0,"images":0,"macros":1,"external_links":0,"defined_names":0,"comments":0,"pivot_tables":0},"unopened":[],"bounds":{"document_bytes":16777216,"sheet_cells":100000,"rows_first":2000,"rows_last":500,"rows_between":2000,"halvings":0,"cell_chars":16384,"cell_head_chars":4096},"cells_cut":0,"cells_raw":0,"read":"whole","date_system":"1900"}

{"sheet":"Dataset","index":0,"n_rows":10,"n_cols":4,"rows_kept":10,"cut":false,"hidden":false,"merged":[[1,1,1,3]]}
[]
[null,"Add Text in the Middle of a Cell"]
[]
[null,"Product","Product ID","New ID"]
[null,"iPad 2021","23ABD344","23MABD344"]
[null,"OnePlus Nord 2","33FCE421","33MFCE421"]
[null,"Nubia RedMagic 6","112AA435","11M2AA435"]
[null,"iPhone 13","32ACC339","32MACC339"]
[null,"Galaxy S21","21BBD432","21MBBD432"]
[null,"Xiaomi MIA3","34CBC983","34MCBC983"]

{"sheet":"Left & Mid","index":1,"n_rows":10,"n_cols":4,"rows_kept":10,"cut":false,"hidden":false,"merged":[[1,1,1,3]]}
[]
[null,"Using LEFT & MID Functions"]
[]
[null,"Product","Product ID","New ID"]
[null,"iPad 2021","23ABD344",{"$f":"LEFT(C5,2) & \"M\" & MID(C5,3,6)","v":"23MABD344"}]
[null,"OnePlus Nord 2","33FCE421",{"$f":"LEFT(C6,2) & \"M\" & MID(C6,3,6)","v":"33MFCE421"}]
[null,"Nubia RedMagic 6","112AA435","11M2AA435"]
[null,"iPhone 13","32ACC339","32MACC339"]
[null,"Galaxy S21","21BBD432","21MBBD432"]
[null,"Xiaomi MIA3","34CBC983","34MCBC983"]

{"sheet":"VBA","index":2,"n_rows":10,"n_cols":3,"rows_kept":10,"cut":false,"hidden":false,"merged":[[1,1,1,2]]}
[]
[null,"Using LEFT & MID Functions"]
[]
[null,"Product","Product ID"]
[null,"iPad 2021","23MABD344"]
[null,"OnePlus Nord 2","33MFCE421"]
[null,"Nubia RedMagic 6","11M2AA435"]
[null,"iPhone 13","32MACC339"]
[null,"Galaxy S21","21MBBD432"]
[null,"Xiaomi MIA3","34MCBC983"]

{"sheet":"Replace","index":3,"n_rows":10,"n_cols":4,"rows_kept":10,"cut":false,"hidden":false,"merged":[[1,1,1,3]]}
[]
[null,"Using LEFT & MID Functions"]
[]
[null,"Product","Product ID","New ID"]
[null,"iPad 2021","23ABD344",{"$f":"REPLACE(C5,3,0,\"M\")","v":"23MABD344"}]
[null,"OnePlus Nord 2","33FCE421",{"$f":"REPLACE(C6,3,0,\"M\")","v":"33MFCE421"}]
[null,"Nubia RedMagic 6","112AA435","11M2AA435"]
[null,"iPhone 13","32ACC339","32MACC339"]
[null,"Galaxy S21","21BBD432","21MBBD432"]
[null,"Xiaomi MIA3","34CBC983","34MCBC983"]

{"sheet":"Combined","index":4,"n_rows":10,"n_cols":4,"rows_kept":10,"cut":false,"hidden":false,"merged":[[1,1,1,3]]}
[]
[null,"Using COMBINED Functions"]
[]
[null,"Product","Product ID","New ID"]
[null,"iPad 2021","23ABD344",{"$f":"CONCATENATE(LEFT(C5,2),\"M\",RIGHT(C5,LEN(C5)-2))","v":"23MABD344"}]
[null,"OnePlus Nord 2","33FCE421",{"$f":"CONCATENATE(LEFT(C6,2),\"M\",RIGHT(C6,LEN(C6)-2))","v":"33MFCE421"}]
[null,"Nubia RedMagic 6","112AA435","11M2AA435"]
[null,"iPhone 13","32ACC339","32MACC339"]
[null,"Galaxy S21","21BBD432","21MBBD432"]
[null,"Xiaomi MIA3","34CBC983","34MCBC983"]

{"sheet":"Substitute","index":5,"n_rows":10,"n_cols":4,"rows_kept":10,"cut":false,"hidden":false,"merged":[[1,1,1,3]]}
[]
[null,"Using SUBSTITUTE Functions"]
[]
[null,"Product","Product ID","New ID"]
[null,"iPad 2021","23ABD344",{"$f":"SUBSTITUTE(C5,\"A\",\"AX\")","v":"23AXBD344"}]
[null,"OnePlus Nord 2","33FCE421",{"$f":"SUBSTITUTE(C6,\"A\",\"AX\")","v":"33FCE421"}]
[null,"Nubia RedMagic 6","112AA435","112AXAX435"]
[null,"iPhone 13","32ACC339","32AXCC339"]
[null,"Galaxy S21","21BBD432","21BBD432"]
[null,"Xiaomi MIA3","34CBC983","34CBC983"]